[Event "*** Titled Tuesday Blitz"]
[Site "Chess.com"]
[Date "2020.04.28"]
[Round "2"]
[White "adiosabu"]
[Black "konradrutkowski"]
[Result "0-1"]
[WhiteElo "2407"]
[BlackElo "2181"]
[TimeControl "180+1"]
[EndTime "10:19:11 PDT"]
[Termination "konradrutkowski won on time"]

1. e4 {[%clk 0:03:00.9]} 1... e5 {[%clk 0:02:59.4]} 2. Nf3 {[%clk 0:03:00.3]}
2... Nc6 {[%clk 0:03:00]} 3. Bb5 {[%clk 0:02:59.5]} 3... a6 {[%clk 0:03:00.5]}
4. Ba4 {[%clk 0:02:59.3]} 4... Nge7 {[%clk 0:03:01.1]} 5. c4 {[%clk 0:02:57.7]}
5... g6 {[%clk 0:02:56.9]} 6. Nc3 {[%clk 0:02:55.6]} 6... Bg7 {[%clk 0:02:56.8]}
7. O-O {[%clk 0:02:52]} 7... O-O {[%clk 0:02:57.2]} 8. d3 {[%clk 0:02:50.2]}
8... h6 {[%clk 0:02:56.9]} 9. Nd5 {[%clk 0:02:40]} 9... d6 {[%clk 0:02:42.5]}
10. h3 {[%clk 0:02:29.3]} 10... Rb8 {[%clk 0:02:38.4]} 11. Re1 {[%clk
0:02:02.8]} 11... b5 {[%clk 0:02:32.2]} 12. cxb5 {[%clk 0:02:02.3]} 12... axb5
{[%clk 0:02:31.7]} 13. Bb3 {[%clk 0:02:01.4]} 13... Na5 {[%clk 0:02:28.5]} 14.
Nxe7+ {[%clk 0:02:00.7]} 14... Qxe7 {[%clk 0:02:27.7]} 15. Bc2 {[%clk
0:02:01.4]} 15... b4 {[%clk 0:02:23.8]} 16. d4 {[%clk 0:01:56.9]} 16... c5
{[%clk 0:02:19.7]} 17. d5 {[%clk 0:01:18.3]} 17... c4 {[%clk 0:02:15.5]} 18. b3
{[%clk 0:01:15.6]} 18... Bd7 {[%clk 0:01:59]} 19. Nd2 {[%clk 0:01:07.2]} 19...
Rfc8 {[%clk 0:01:55.6]} 20. Nxc4 {[%clk 0:01:06.5]} 20... Nxc4 {[%clk
0:01:55.4]} 21. bxc4 {[%clk 0:01:06.6]} 21... Rxc4 {[%clk 0:01:56.1]} 22. Bb3
{[%clk 0:01:04.9]} 22... Rc7 {[%clk 0:01:44.3]} 23. Bd2 {[%clk 0:01:04.6]} 23...
f5 {[%clk 0:01:40.7]} 24. Rc1 {[%clk 0:01:02.7]} 24... Rxc1 {[%clk 0:01:16.5]}
25. Qxc1 {[%clk 0:01:02.3]} 25... Kh7 {[%clk 0:01:16.1]} 26. Qc7 {[%clk
0:00:56.1]} 26... Rc8 {[%clk 0:01:14.7]} 27. Qb7 {[%clk 0:00:50.9]} 27... fxe4
{[%clk 0:01:11.4]} 28. Bxb4 {[%clk 0:00:39]} 28... Bf6 {[%clk 0:00:45.2]} 29.
Qb6 {[%clk 0:00:26.5]} 29... e3 {[%clk 0:00:42.9]} 30. fxe3 {[%clk 0:00:22.9]}
30... Bh4 {[%clk 0:00:41]} 31. Rf1 {[%clk 0:00:23.2]} 31... Rf8 {[%clk
0:00:32.9]} 32. Qa6 {[%clk 0:00:14.8]} 32... Rxf1+ {[%clk 0:00:26.8]} 33. Qxf1
{[%clk 0:00:14.1]} 33... Bf5 {[%clk 0:00:27.2]} 34. a4 {[%clk 0:00:09.9]} 34...
h5 {[%clk 0:00:23.8]} 35. a5 {[%clk 0:00:09.5]} 35... Qa7 {[%clk 0:00:23.7]} 36.
Qf3 {[%clk 0:00:08.1]} 36... Bg5 {[%clk 0:00:20.1]} 37. Kf2 {[%clk 0:00:07.3]}
37... h4 {[%clk 0:00:18]} 38. Bc4 {[%clk 0:00:05.8]} 38... Qb7 {[%clk
0:00:14.8]} 39. Bd2 {[%clk 0:00:05.7]} 39... Qb2 {[%clk 0:00:12.8]} 40. Qe2
{[%clk 0:00:05.9]} 40... Qc2 {[%clk 0:00:08.5]} 41. a6 {[%clk 0:00:05.9]} 41...
Qa4 {[%clk 0:00:08.5]} 42. e4 {[%clk 0:00:05.4]} 42... Bxd2 {[%clk 0:00:07.1]}
43. exf5 {[%clk 0:00:04.8]} 43... Bf4 {[%clk 0:00:02.5]} 44. fxg6+ {[%clk
0:00:04.1]} 44... Kg7 {[%clk 0:00:03.4]} 45. Qd3 {[%clk 0:00:03.8]} 45... Qa5
{[%clk 0:00:02.4]} 46. Kf3 {[%clk 0:00:04]} 46... Qb6 {[%clk 0:00:02.8]} 47. Qe2
{[%clk 0:00:02.9]} 47... Bg3 {[%clk 0:00:03.5]} 48. Kg4 {[%clk 0:00:02.5]} 48...
e4 {[%clk 0:00:04.4]} 49. Kf5 {[%clk 0:00:02.6]} 49... Qd4 {[%clk 0:00:04.3]}
50. Ke6 {[%clk 0:00:02.3]} 50... Qf6+ {[%clk 0:00:05.2]} 51. Kd7 {[%clk
0:00:02.6]} 51... Qxg6 {[%clk 0:00:05.2]} 52. Kc6 {[%clk 0:00:01.9]} 52... Qf7
{[%clk 0:00:06.1]} 53. Qe3 {[%clk 0:00:01.2]} 53... Qe8+ {[%clk 0:00:07]} 0-1

[Event "*** Titled Tuesday Blitz"]
[Site "Chess.com"]
[Date "2020.04.28"]
[Round "2"]
[White "sergoy"]
[Black "Kildepiotr"]
[Result "1-0"]
[WhiteElo "2869"]
[BlackElo "2558"]
[TimeControl "180+1"]
[EndTime "10:19:12 PDT"]
[Termination "sergoy won by resignation"]

1. d4 {[%clk 0:02:56.1]} 1... c5 {[%clk 0:02:59]} 2. d5 {[%clk 0:02:55.9]} 2...
e5 {[%clk 0:02:59.3]} 3. e4 {[%clk 0:02:56.3]} 3... d6 {[%clk 0:02:59.4]} 4.
Bb5+ {[%clk 0:02:56]} 4... Nd7 {[%clk 0:02:59.8]} 5. a4 {[%clk 0:02:54.6]} 5...
Be7 {[%clk 0:02:59.1]} 6. Nc3 {[%clk 0:02:54.8]} 6... Bg5 {[%clk 0:02:57.9]} 7.
Nf3 {[%clk 0:02:55.2]} 7... Bxc1 {[%clk 0:02:57.7]} 8. Rxc1 {[%clk 0:02:56.1]}
8... Ne7 {[%clk 0:02:58.1]} 9. O-O {[%clk 0:02:55.2]} 9... O-O {[%clk
0:02:58.3]} 10. Nd2 {[%clk 0:02:53.3]} 10... Nf6 {[%clk 0:02:57.9]} 11. Be2
{[%clk 0:02:52.6]} 11... b6 {[%clk 0:02:56.4]} 12. Ra1 {[%clk 0:02:52]} 12... a6
{[%clk 0:02:53]} 13. Nc4 {[%clk 0:02:29]} 13... Ng6 {[%clk 0:02:51.9]} 14. g3
{[%clk 0:02:26.4]} 14... Bh3 {[%clk 0:02:51]} 15. Re1 {[%clk 0:02:26.2]} 15...
Qc7 {[%clk 0:02:50]} 16. Ne3 {[%clk 0:02:22.1]} 16... Rfe8 {[%clk 0:02:42.6]}
17. Bf1 {[%clk 0:02:21.7]} 17... Bxf1 {[%clk 0:02:41.6]} 18. Rxf1 {[%clk
0:02:22.6]} 18... Rab8 {[%clk 0:02:37]} 19. Qe2 {[%clk 0:02:18.3]} 19... Qb7
{[%clk 0:02:32.5]} 20. Nc4 {[%clk 0:02:12.9]} 20... Red8 {[%clk 0:02:29]} 21.
Ra3 {[%clk 0:02:11.6]} 21... Ra8 {[%clk 0:02:16.9]} 22. Rb3 {[%clk 0:02:10.6]}
22... b5 {[%clk 0:02:10.2]} 23. axb5 {[%clk 0:02:10.4]} 23... axb5 {[%clk
0:02:10.3]} 24. Nxb5 {[%clk 0:02:10.7]} 24... Qe7 {[%clk 0:02:09.4]} 25. Ne3
{[%clk 0:02:05]} 25... Ra4 {[%clk 0:02:02]} 26. Nf5 {[%clk 0:02:01.9]} 26... Qf8
{[%clk 0:02:02.1]} 27. Nc3 {[%clk 0:01:59.1]} 27... Rb4 {[%clk 0:01:57.5]} 28.
Rxb4 {[%clk 0:01:57.2]} 28... cxb4 {[%clk 0:01:58.4]} 29. Nb5 {[%clk 0:01:57.7]}
29... Ne8 {[%clk 0:01:50.8]} 30. Qc4 {[%clk 0:01:56]} 30... Rb8 {[%clk
0:01:50.3]} 31. Ra1 {[%clk 0:01:55.1]} 31... Ne7 {[%clk 0:01:49.4]} 32. Nfxd6
{[%clk 0:01:53.7]} 32... Nxd6 {[%clk 0:01:46.3]} 33. Nxd6 {[%clk 0:01:54.6]}
33... Ng6 {[%clk 0:01:44.8]} 34. Nf5 {[%clk 0:01:52.2]} 34... Rc8 {[%clk
0:01:43.8]} 35. Qd3 {[%clk 0:01:52.1]} 35... Ne7 {[%clk 0:01:42]} 36. d6 {[%clk
0:01:44.5]} 36... Nxf5 {[%clk 0:01:41.9]} 37. exf5 {[%clk 0:01:45.4]} 37... Rd8
{[%clk 0:01:41.5]} 38. d7 {[%clk 0:01:42.7]} 38... Qc5 {[%clk 0:01:38.4]} 39.
Ra6 {[%clk 0:01:22.9]} 39... h5 {[%clk 0:01:36.2]} 40. Rd6 {[%clk 0:01:21.6]}
40... h4 {[%clk 0:01:28.8]} 41. Rd5 {[%clk 0:01:17.5]} 41... Qc7 {[%clk
0:01:26.6]} 42. gxh4 {[%clk 0:01:17.1]} 42... Kf8 {[%clk 0:01:23.8]} 43. Qe4
{[%clk 0:01:13.7]} 43... f6 {[%clk 0:01:22.3]} 44. Qxb4+ {[%clk 0:01:12.7]}
44... Kf7 {[%clk 0:01:20.6]} 45. Qb3 {[%clk 0:01:11.5]} 45... Ke7 {[%clk
0:01:20]} 46. Qb4+ {[%clk 0:01:05.3]} 46... Kf7 {[%clk 0:01:19.5]} 47. Qb3
{[%clk 0:00:50.8]} 47... Ke7 {[%clk 0:01:18.7]} 48. Qd3 {[%clk 0:00:51.3]} 48...
Qb6 {[%clk 0:01:09.5]} 49. b3 {[%clk 0:00:45.1]} 49... Qb4 {[%clk 0:01:05.9]}
50. c4 {[%clk 0:00:44.2]} 50... Qe1+ {[%clk 0:00:50.6]} 51. Kg2 {[%clk 0:00:44]}
51... e4 {[%clk 0:00:50.4]} 52. Qg3 {[%clk 0:00:42]} 52... Kf8 {[%clk
0:00:46.9]} 53. Qc7 {[%clk 0:00:34.7]} 53... Ke7 {[%clk 0:00:45.9]} 54. Qd6+
{[%clk 0:00:26.9]} 54... Kf7 {[%clk 0:00:44.9]} 55. Qg3 {[%clk 0:00:16.1]} 55...
Qe2 {[%clk 0:00:43.3]} 56. c5 {[%clk 0:00:16.5]} 56... Qb5 {[%clk 0:00:40.3]}
57. Qd6 {[%clk 0:00:12.3]} 57... Qxb3 {[%clk 0:00:37.3]} 58. Qe6+ {[%clk
0:00:11.6]} 58... Kf8 {[%clk 0:00:36.7]} 59. c6 {[%clk 0:00:11.9]} 59... Qf3+
{[%clk 0:00:36.2]} 60. Kg1 {[%clk 0:00:11.6]} 60... Qg4+ {[%clk 0:00:35.2]} 61.
Kf1 {[%clk 0:00:12]} 61... Qh3+ {[%clk 0:00:35.3]} 62. Ke1 {[%clk 0:00:12.2]}
62... Qc3+ {[%clk 0:00:35]} 63. Rd2 {[%clk 0:00:12]} 63... Qa1+ {[%clk 0:00:31]}
64. Ke2 {[%clk 0:00:11.6]} 64... Qa6+ {[%clk 0:00:30.9]} 65. Ke3 {[%clk
0:00:12.2]} 65... Qb6+ {[%clk 0:00:28.7]} 66. Rd4 {[%clk 0:00:12.1]} 66... Qc7
{[%clk 0:00:25.9]} 67. Qd6+ {[%clk 0:00:11.1]} 67... Qxd6 {[%clk 0:00:26]} 68.
Rxd6 {[%clk 0:00:12]} 68... Ke7 {[%clk 0:00:26.9]} 69. Re6+ {[%clk 0:00:12.5]}
69... Kf7 {[%clk 0:00:26.9]} 70. Kxe4 {[%clk 0:00:13]} 70... Ra8 {[%clk
0:00:25.9]} 71. c7 {[%clk 0:00:12.7]} 1-0

[Event "*** Titled Tuesday Blitz"]
[Site "Chess.com"]
[Date "2020.04.28"]
[Round "2"]
[White "YoungUzbek"]
[Black "12teen"]
[Result "0-1"]
[WhiteElo "2520"]
[BlackElo "2795"]
[TimeControl "180+1"]
[EndTime "10:19:12 PDT"]
[Termination "12teen won by resignation"]

1. d4 {[%clk 0:02:59.9]} 1... e6 {[%clk 0:02:58.6]} 2. Nf3 {[%clk 0:03:00.2]}
2... d5 {[%clk 0:02:58.7]} 3. g3 {[%clk 0:03:00.3]} 3... b6 {[%clk 0:02:58.3]}
4. Bg2 {[%clk 0:03:00.9]} 4... Bb7 {[%clk 0:02:59.2]} 5. O-O {[%clk 0:03:01.3]}
5... Nf6 {[%clk 0:02:59]} 6. c4 {[%clk 0:03:01.9]} 6... dxc4 {[%clk 0:02:59.9]}
7. Qa4+ {[%clk 0:03:00.8]} 7... Nbd7 {[%clk 0:03:00.4]} 8. Ne5 {[%clk
0:02:59.5]} 8... Bxg2 {[%clk 0:02:59.4]} 9. Kxg2 {[%clk 0:03:00.4]} 9... a6
{[%clk 0:02:55.8]} 10. Nc6 {[%clk 0:02:58.9]} 10... Qc8 {[%clk 0:02:55.7]} 11.
Qxc4 {[%clk 0:02:56.5]} 11... Qb7 {[%clk 0:02:41.9]} 12. Kg1 {[%clk 0:02:54.8]}
12... b5 {[%clk 0:02:29.8]} 13. Qc2 {[%clk 0:02:54.5]} 13... Nb6 {[%clk
0:02:27.3]} 14. Na5 {[%clk 0:02:28.4]} 14... Qc8 {[%clk 0:02:23.5]} 15. Bg5
{[%clk 0:02:05.6]} 15... Nfd7 {[%clk 0:01:59.1]} 16. e4 {[%clk 0:01:42.3]} 16...
h6 {[%clk 0:01:49.9]} 17. Be3 {[%clk 0:01:25.9]} 17... c5 {[%clk 0:01:50.3]} 18.
d5 {[%clk 0:01:21]} 18... Nf6 {[%clk 0:01:34.9]} 19. Nc3 {[%clk 0:01:12.8]}
19... Qc7 {[%clk 0:00:55]} 20. dxe6 {[%clk 0:00:26.3]} 20... fxe6 {[%clk
0:00:55.9]} 21. Rad1 {[%clk 0:00:17.1]} 21... Nbd7 {[%clk 0:00:55.5]} 22. Nb3
{[%clk 0:00:12.7]} 22... Be7 {[%clk 0:00:52.7]} 23. Bf4 {[%clk 0:00:12.4]} 23...
e5 {[%clk 0:00:50.9]} 24. Be3 {[%clk 0:00:12.6]} 24... c4 {[%clk 0:00:49.5]} 25.
Nd5 {[%clk 0:00:11.8]} 25... Nxd5 {[%clk 0:00:46.5]} 26. exd5 {[%clk 0:00:12.1]}
26... O-O {[%clk 0:00:44.5]} 27. Nd2 {[%clk 0:00:12.3]} 27... Nf6 {[%clk
0:00:43.5]} 28. Ne4 {[%clk 0:00:12.9]} 28... Rad8 {[%clk 0:00:42.6]} 29. Nxf6+
{[%clk 0:00:12.9]} 29... Rxf6 {[%clk 0:00:43]} 30. Qe4 {[%clk 0:00:13.4]} 30...
Bd6 {[%clk 0:00:39.2]} 31. Rd2 {[%clk 0:00:13.5]} 31... Qf7 {[%clk 0:00:38.1]}
32. Kg2 {[%clk 0:00:13.7]} 32... Bb4 {[%clk 0:00:34.6]} 33. Rc2 {[%clk
0:00:13.5]} 33... Bd6 {[%clk 0:00:35.5]} 34. Rd1 {[%clk 0:00:13.2]} 34... Rf8
{[%clk 0:00:33.9]} 35. a4 {[%clk 0:00:13]} 35... Qd7 {[%clk 0:00:32.3]} 36. axb5
{[%clk 0:00:13.2]} 36... axb5 {[%clk 0:00:33.2]} 37. Ra1 {[%clk 0:00:13.4]}
37... Qc7 {[%clk 0:00:30.2]} 38. Ra7 {[%clk 0:00:13.4]} 38... Qc8 {[%clk
0:00:23.7]} 39. b3 {[%clk 0:00:13.4]} 39... Bc5 {[%clk 0:00:22.8]} 40. bxc4
{[%clk 0:00:12.5]} 40... Bxa7 {[%clk 0:00:22]} 41. Bxa7 {[%clk 0:00:12]} 41...
bxc4 {[%clk 0:00:20.9]} 42. Qxe5 {[%clk 0:00:11]} 42... Qa6 {[%clk 0:00:16.7]}
43. Bd4 {[%clk 0:00:11]} 43... Qa4 {[%clk 0:00:15.4]} 44. Re2 {[%clk 0:00:09.5]}
44... Qb5 {[%clk 0:00:14.9]} 45. d6 {[%clk 0:00:09.7]} 45... Qc6+ {[%clk
0:00:14]} 46. Kh3 {[%clk 0:00:09.1]} 46... Qxd6 {[%clk 0:00:13.5]} 47. Qxd6
{[%clk 0:00:09.5]} 47... Rxd6 {[%clk 0:00:14.4]} 48. Bc5 {[%clk 0:00:10.2]}
48... Rfd8 {[%clk 0:00:09]} 49. Bxd6 {[%clk 0:00:10.2]} 49... Rxd6 {[%clk
0:00:09.9]} 50. Re8+ {[%clk 0:00:10.5]} 50... Kf7 {[%clk 0:00:09.4]} 51. Rc8
{[%clk 0:00:11.4]} 51... Rd4 {[%clk 0:00:09.8]} 52. f4 {[%clk 0:00:11.4]} 52...
Kg6 {[%clk 0:00:09.7]} 53. Kg4 {[%clk 0:00:12]} 53... Rd2 {[%clk 0:00:08.3]} 54.
Rc6+ {[%clk 0:00:11.5]} 54... Kh7 {[%clk 0:00:08.2]} 55. h4 {[%clk 0:00:12]}
55... Rc2 {[%clk 0:00:08]} 56. h5 {[%clk 0:00:12.5]} 56... c3 {[%clk 0:00:07.7]}
57. Kf5 {[%clk 0:00:13.1]} 57... Rg2 {[%clk 0:00:06.4]} 58. g4 {[%clk
0:00:12.8]} 58... c2 {[%clk 0:00:06.9]} 59. Rc8 {[%clk 0:00:13.2]} 59... Rf2
{[%clk 0:00:06.6]} 60. Ke5 {[%clk 0:00:12.6]} 60... Re2+ {[%clk 0:00:06.8]} 61.
Kd6 {[%clk 0:00:12.2]} 61... Rg2 {[%clk 0:00:06.4]} 62. g5 {[%clk 0:00:11.5]}
62... hxg5 {[%clk 0:00:06.7]} 63. f5 {[%clk 0:00:12]} 63... Rf2 {[%clk
0:00:05.6]} 64. Ke6 {[%clk 0:00:12.1]} 64... Re2+ {[%clk 0:00:04.6]} 65. Kf7
{[%clk 0:00:12.2]} 65... Rf2 {[%clk 0:00:04.7]} 66. Ke6 {[%clk 0:00:12.5]} 66...
g4 {[%clk 0:00:04.8]} 67. h6 {[%clk 0:00:11.1]} 67... Kxh6 {[%clk 0:00:05]} 68.
Kf7 {[%clk 0:00:07.2]} 68... Rxf5+ {[%clk 0:00:04.6]} 0-1

[Event "*** Titled Tuesday Blitz"]
[Site "Chess.com"]
[Date "2020.04.28"]
[Round "2"]
[White "Gareth-Bale11"]
[Black "Milchone1"]
[Result "1-0"]
[WhiteElo "2752"]
[BlackElo "2501"]
[TimeControl "180+1"]
[EndTime "10:19:12 PDT"]
[Termination "Gareth-Bale11 won on time"]

1. e4 {[%clk 0:03:00.9]} 1... e5 {[%clk 0:02:58.6]} 2. Nf3 {[%clk 0:03:00.4]}
2... Nc6 {[%clk 0:02:59]} 3. Bb5 {[%clk 0:03:00]} 3... Nge7 {[%clk 0:02:59.4]}
4. O-O {[%clk 0:02:58.5]} 4... a6 {[%clk 0:02:59.7]} 5. Ba4 {[%clk 0:02:58.2]}
5... g6 {[%clk 0:03:00.2]} 6. c3 {[%clk 0:02:57.9]} 6... Bg7 {[%clk 0:03:00.7]}
7. d4 {[%clk 0:02:55]} 7... exd4 {[%clk 0:03:01.6]} 8. cxd4 {[%clk 0:02:55.1]}
8... b5 {[%clk 0:03:02]} 9. Bc2 {[%clk 0:02:54.4]} 9... O-O {[%clk 0:03:02.5]}
10. Nc3 {[%clk 0:02:46.7]} 10... d6 {[%clk 0:03:02.3]} 11. h3 {[%clk 0:02:46.2]}
11... h6 {[%clk 0:03:01.4]} 12. d5 {[%clk 0:02:35.9]} 12... Na5 {[%clk
0:03:00.9]} 13. Re1 {[%clk 0:02:28.8]} 13... c5 {[%clk 0:02:57.5]} 14. dxc6
{[%clk 0:02:25]} 14... Nexc6 {[%clk 0:02:57.3]} 15. Bf4 {[%clk 0:02:20.4]} 15...
Ne5 {[%clk 0:02:53.3]} 16. Rc1 {[%clk 0:02:00.7]} 16... Nac4 {[%clk 0:02:42.9]}
17. b3 {[%clk 0:01:50.7]} 17... Nxf3+ {[%clk 0:02:35.3]} 18. Qxf3 {[%clk
0:01:48.8]} 18... Ne5 {[%clk 0:02:34.2]} 19. Qe3 {[%clk 0:01:44.3]} 19... g5
{[%clk 0:02:32.6]} 20. Bg3 {[%clk 0:01:43.2]} 20... Be6 {[%clk 0:02:30.5]} 21.
Ne2 {[%clk 0:01:35.2]} 21... Qe7 {[%clk 0:02:24.4]} 22. Rcd1 {[%clk 0:01:24.1]}
22... Rac8 {[%clk 0:02:22.7]} 23. Bb1 {[%clk 0:01:23.9]} 23... Rfd8 {[%clk
0:02:21.6]} 24. f4 {[%clk 0:01:14.6]} 24... gxf4 {[%clk 0:02:22.5]} 25. Nxf4
{[%clk 0:01:14.9]} 25... Qg5 {[%clk 0:02:10.4]} 26. Qf2 {[%clk 0:01:11.4]} 26...
h5 {[%clk 0:01:37.3]} 27. Bh4 {[%clk 0:00:57.8]} 27... Qh6 {[%clk 0:01:37.6]}
28. Bxd8 {[%clk 0:00:57.7]} 28... Rxd8 {[%clk 0:01:38.5]} 29. Nxe6 {[%clk
0:00:52.6]} 29... fxe6 {[%clk 0:01:36]} 30. Qb6 {[%clk 0:00:50.5]} 30... Nf7
{[%clk 0:01:31.9]} 31. Rf1 {[%clk 0:00:47.2]} 31... Rf8 {[%clk 0:01:10.4]} 32.
Qxa6 {[%clk 0:00:46.1]} 32... Be5 {[%clk 0:01:09.1]} 33. Rf3 {[%clk 0:00:38.8]}
33... Ng5 {[%clk 0:01:03.1]} 34. Rxf8+ {[%clk 0:00:37.9]} 34... Kxf8 {[%clk
0:01:04]} 35. Qxb5 {[%clk 0:00:34.3]} 35... Nxh3+ {[%clk 0:01:02]} 36. gxh3
{[%clk 0:00:30.5]} 36... Qe3+ {[%clk 0:01:01.3]} 37. Kf1 {[%clk 0:00:21.3]}
37... Qf3+ {[%clk 0:01:00.4]} 38. Ke1 {[%clk 0:00:21.7]} 38... Qe3+ {[%clk
0:00:52.6]} 39. Qe2 {[%clk 0:00:17]} 39... Qc3+ {[%clk 0:00:39.5]} 40. Kf1
{[%clk 0:00:16.5]} 40... Qxh3+ {[%clk 0:00:36.2]} 41. Qg2 {[%clk 0:00:16.7]}
41... Qc3 {[%clk 0:00:33.9]} 42. Bd3 {[%clk 0:00:16.7]} 42... Ke7 {[%clk
0:00:31.9]} 43. Be2 {[%clk 0:00:16.7]} 43... h4 {[%clk 0:00:30.9]} 44. Qf3
{[%clk 0:00:16.8]} 44... Qb2 {[%clk 0:00:29]} 45. a4 {[%clk 0:00:16.9]} 45...
Kd7 {[%clk 0:00:28.5]} 46. a5 {[%clk 0:00:17]} 46... Kc6 {[%clk 0:00:28.2]} 47.
a6 {[%clk 0:00:17.1]} 47... Qa2 {[%clk 0:00:28.5]} 48. Qe3 {[%clk 0:00:15.9]}
48... Qa3 {[%clk 0:00:26.6]} 49. Rc1+ {[%clk 0:00:15.9]} 49... Kd7 {[%clk
0:00:26]} 50. Qg5 {[%clk 0:00:15.8]} 50... h3 {[%clk 0:00:26]} 51. a7 {[%clk
0:00:14.2]} 51... h2 {[%clk 0:00:21.8]} 52. Qh6 {[%clk 0:00:13.8]} 52... Qxa7
{[%clk 0:00:19.5]} 53. Kg2 {[%clk 0:00:09.8]} 53... Qa2 {[%clk 0:00:15.3]} 54.
Qh7+ {[%clk 0:00:09.6]} 54... Kd8 {[%clk 0:00:15.2]} 55. Qc7+ {[%clk 0:00:09.6]}
55... Ke8 {[%clk 0:00:15.4]} 56. Qc8+ {[%clk 0:00:10.2]} 56... Kf7 {[%clk
0:00:15]} 57. Rc7+ {[%clk 0:00:11.1]} 57... Kf6 {[%clk 0:00:14]} 58. Qh8+ {[%clk
0:00:10.9]} 58... Kg5 {[%clk 0:00:14.2]} 59. Qg8+ {[%clk 0:00:10.6]} 59... Kf4
{[%clk 0:00:14.5]} 60. Qg4+ {[%clk 0:00:10.6]} 60... Ke3 {[%clk 0:00:13.8]} 61.
Qf3+ {[%clk 0:00:10.8]} 61... Kd2 {[%clk 0:00:12.4]} 62. Qd3+ {[%clk 0:00:11.3]}
1-0

[Event "*** Titled Tuesday Blitz"]
[Site "Chess.com"]
[Date "2020.04.28"]
[Round "2"]
[White "cassoulet"]
[Black "AsaHoffmann"]
[Result "1/2-1/2"]
[WhiteElo "2606"]
[BlackElo "2316"]
[TimeControl "180+1"]
[EndTime "10:19:21 PDT"]
[Termination "Game drawn - insufficient material"]

1. e4 {[%clk 0:03:00.9]} 1... d6 {[%clk 0:02:59.2]} 2. d4 {[%clk 0:03:00.5]}
2... Nf6 {[%clk 0:02:58.4]} 3. Nc3 {[%clk 0:03:00.7]} 3... c6 {[%clk 0:02:54.7]}
4. Bd3 {[%clk 0:02:55.5]} 4... e5 {[%clk 0:02:53.7]} 5. Nf3 {[%clk 0:02:54.1]}
5... Bg4 {[%clk 0:02:52.2]} 6. Be3 {[%clk 0:02:50.6]} 6... Nbd7 {[%clk
0:02:51.5]} 7. h3 {[%clk 0:02:50.2]} 7... Bh5 {[%clk 0:02:51]} 8. Qd2 {[%clk
0:02:44.4]} 8... b5 {[%clk 0:02:45.4]} 9. a3 {[%clk 0:02:36.7]} 9... Qc7 {[%clk
0:02:42.5]} 10. d5 {[%clk 0:02:26.2]} 10... a6 {[%clk 0:02:38.8]} 11. dxc6
{[%clk 0:02:21.4]} 11... Qxc6 {[%clk 0:02:38.4]} 12. a4 {[%clk 0:02:16.3]} 12...
b4 {[%clk 0:02:35.2]} 13. Nd5 {[%clk 0:02:02.6]} 13... Nxd5 {[%clk 0:02:28.5]}
14. exd5 {[%clk 0:02:03.5]} 14... Qb7 {[%clk 0:02:13.9]} 15. Be2 {[%clk
0:01:53.2]} 15... Be7 {[%clk 0:02:09.3]} 16. Nxe5 {[%clk 0:01:47.4]} 16... Bxe2
{[%clk 0:01:56.2]} 17. Nxd7 {[%clk 0:01:47.1]} 17... Qxd7 {[%clk 0:01:42.6]} 18.
Qxe2 {[%clk 0:01:45.3]} 18... O-O {[%clk 0:01:42]} 19. O-O {[%clk 0:01:44]}
19... Bf6 {[%clk 0:01:41.7]} 20. Bd2 {[%clk 0:01:23.1]} 20... Bxb2 {[%clk
0:01:35.2]} 21. Rab1 {[%clk 0:01:22.7]} 21... Bc3 {[%clk 0:01:34.9]} 22. Bxc3
{[%clk 0:01:22.9]} 22... bxc3 {[%clk 0:01:34.7]} 23. Rb4 {[%clk 0:01:23.3]}
23... Qf5 {[%clk 0:01:27.8]} 24. Rd1 {[%clk 0:01:14.9]} 24... Rfe8 {[%clk
0:01:21.3]} 25. Qd3 {[%clk 0:01:08.8]} 25... Qe5 {[%clk 0:01:15.3]} 26. Rc4
{[%clk 0:01:04.9]} 26... Rac8 {[%clk 0:01:09.6]} 27. Rxc8 {[%clk 0:01:04.5]}
27... Rxc8 {[%clk 0:01:08.7]} 28. Qxa6 {[%clk 0:01:05.2]} 28... Re8 {[%clk
0:01:01.1]} 29. a5 {[%clk 0:01:03.6]} 29... h5 {[%clk 0:00:51.7]} 30. Qc4 {[%clk
0:00:52.2]} 30... Qe2 {[%clk 0:00:49.3]} 31. Qd3 {[%clk 0:00:26.8]} 31... Qxd3
{[%clk 0:00:43.2]} 32. Rxd3 {[%clk 0:00:27.7]} 32... Ra8 {[%clk 0:00:42.4]} 33.
Rxc3 {[%clk 0:00:27.9]} 33... Rxa5 {[%clk 0:00:41.8]} 34. Rc8+ {[%clk
0:00:28.1]} 34... Kh7 {[%clk 0:00:41.1]} 35. c4 {[%clk 0:00:29]} 35... Ra4
{[%clk 0:00:38.8]} 36. h4 {[%clk 0:00:25.8]} 36... Kg6 {[%clk 0:00:38.4]} 37.
Kh2 {[%clk 0:00:26]} 37... Kf5 {[%clk 0:00:37.8]} 38. Rc7 {[%clk 0:00:25.7]}
38... Kf6 {[%clk 0:00:36.8]} 39. Kg3 {[%clk 0:00:25.1]} 39... g6 {[%clk
0:00:36.5]} 40. Kf4 {[%clk 0:00:25.2]} 40... Ra2 {[%clk 0:00:35.7]} 41. Kf3
{[%clk 0:00:24.7]} 41... Ra3+ {[%clk 0:00:35.3]} 42. Kf4 {[%clk 0:00:23.2]}
42... Ra2 {[%clk 0:00:34.7]} 43. f3 {[%clk 0:00:21.8]} 43... Rxg2 {[%clk
0:00:32.9]} 44. Rd7 {[%clk 0:00:22.2]} 44... Rc2 {[%clk 0:00:30.9]} 45. Rxd6+
{[%clk 0:00:22.5]} 45... Ke7 {[%clk 0:00:30]} 46. Rc6 {[%clk 0:00:23.4]} 46...
f6 {[%clk 0:00:29.3]} 47. c5 {[%clk 0:00:22.3]} 47... Rc4+ {[%clk 0:00:28.7]}
48. Kg3 {[%clk 0:00:22]} 48... g5 {[%clk 0:00:28.3]} 49. hxg5 {[%clk 0:00:22.9]}
49... fxg5 {[%clk 0:00:28.1]} 50. d6+ {[%clk 0:00:23.8]} 50... Kd7 {[%clk
0:00:27.8]} 51. Rc7+ {[%clk 0:00:24.1]} 51... Kd8 {[%clk 0:00:27.6]} 52. c6
{[%clk 0:00:24.1]} 52... Rc3 {[%clk 0:00:26.5]} 53. Kf2 {[%clk 0:00:21.7]} 53...
g4 {[%clk 0:00:25.6]} 54. fxg4 {[%clk 0:00:22.3]} 54... hxg4 {[%clk 0:00:25.3]}
55. Rd7+ {[%clk 0:00:19.6]} 55... Kc8 {[%clk 0:00:24.7]} 56. Rc7+ {[%clk
0:00:20.5]} 56... Kd8 {[%clk 0:00:24.3]} 57. Ke2 {[%clk 0:00:21.4]} 57... g3
{[%clk 0:00:23.9]} 58. Kd2 {[%clk 0:00:21.6]} 58... Rc5 {[%clk 0:00:23.4]} 59.
Ke3 {[%clk 0:00:20.6]} 59... Rc3+ {[%clk 0:00:19.5]} 60. Ke2 {[%clk 0:00:20.6]}
60... Rc5 {[%clk 0:00:18.6]} 61. Kf3 {[%clk 0:00:20.6]} 61... Rc3+ {[%clk
0:00:18]} 62. Kg2 {[%clk 0:00:20.9]} 62... Rd3 {[%clk 0:00:16.8]} 63. Rd7+
{[%clk 0:00:19.6]} 63... Kc8 {[%clk 0:00:16.1]} 64. Kh3 {[%clk 0:00:20.1]} 64...
Rc3 {[%clk 0:00:14.1]} 65. Rc7+ {[%clk 0:00:19.1]} 65... Kd8 {[%clk 0:00:13.7]}
66. Kg2 {[%clk 0:00:18.4]} 66... Rd3 {[%clk 0:00:13.4]} 67. Rd7+ {[%clk
0:00:17.7]} 67... Kc8 {[%clk 0:00:12.6]} 68. Kf1 {[%clk 0:00:14.6]} 68... Rc3
{[%clk 0:00:12.2]} 69. Rc7+ {[%clk 0:00:14.2]} 69... Kd8 {[%clk 0:00:11.9]} 70.
Kg1 {[%clk 0:00:14.7]} 70... Rd3 {[%clk 0:00:11.5]} 71. Rd7+ {[%clk 0:00:14.4]}
71... Kc8 {[%clk 0:00:11.1]} 72. Kg2 {[%clk 0:00:13.8]} 72... Rc3 {[%clk
0:00:10.3]} 73. Rc7+ {[%clk 0:00:13.6]} 73... Kd8 {[%clk 0:00:09.8]} 74. Rh7
{[%clk 0:00:14.5]} 74... Rxc6 {[%clk 0:00:08.7]} 75. Rh6 {[%clk 0:00:14.1]}
75... Kd7 {[%clk 0:00:08.1]} 76. Kxg3 {[%clk 0:00:14.3]} 76... Rxd6 {[%clk
0:00:07.8]} 77. Rxd6+ {[%clk 0:00:15.2]} 77... Kxd6 {[%clk 0:00:07.5]} 1/2-1/2